Cogmind - Beta 15 @@@ ROGUE MODE // 2025.09.03 @ 22:54:23 Player: Lunace Result: Self-destructed Performance ------------- Evolutions (4) 2000 Regions Visited (4) 800 Robots Destroyed (19) 95 Value Destroyed (547) 547 Prototype IDs (11) 220 Alien Tech Used (0) 0 Bonus (800) 800 TOTAL SCORE: 4462 Bonus ------- Registered with UFD 300 Met Optimus in HQ 500 Cogmind --------- Core Integrity 850/850 Matter 185/300 Energy 350/350 System Corruption 0% Temperature Cool (0) Movement Treading (155) Location -6/Factory Parts ------- > --- POWER (2) -------- Improved Deuterium Engine Light Fission Core > --- PROPULSION (4) --- Advanced Treads Improved Medium Treads Improved Medium Treads > --- UTILITY (6) ------ Large Storage Unit Improved Sensor Array Improved Signal Interpreter Hardened Heavy Armor Plating A0-MCA's Component Scanner > --- WEAPON (3) ------- Gauss Rifle Coil Gun Heavy Flak Cannon > --- INVENTORY (15) --- Ion Engine Light Nuclear Core Faulty Cooled Cesium-ion Thruster Improved Cooling System Small Storage Unit Improved Hardlight Generator Hacking Suite Medium Laser Flak Gun Mini Grenade Launcher CPS Tube (2) CPS Tube (2) Peak State ------------ > --- POWER ------------ Improved Deuterium Engine Light Fission Core > --- PROPULSION ------- Advanced Treads Improved Medium Treads Improved Medium Treads > --- UTILITY ---------- Large Storage Unit Improved Sensor Array Improved Signal Interpreter Hardened Heavy Armor Plating A0-MCA's Component Scanner > --- WEAPON ----------- Gauss Rifle Coil Gun Heavy Flak Cannon > --- INVENTORY -------- Ion Engine Light Nuclear Core Cooled Cesium-ion Thruster Improved Cooling System Small Storage Unit Improved Hardlight Generator Hacking Suite Medium Laser Flak Gun Mini Grenade Launcher CPS Tube CPS Tube [Rating: 63] Favorites ----------- Power Ion Engine Engine Ion Engine Power Core Light Fission Core Propulsion Light Treads Treads Light Treads Leg Improved Aluminum Leg Utility Large Storage Unit Device Seismic Detector Storage Large Storage Unit Processor A0-MCA's Component Scanner Protection Light Armor Plating Weapon Medium Laser Energy Gun Medium Laser Ballistic Gun Coil Gun Ballistic Cannon Heavy Flak Cannon Build | -11 -10 -10 -8 -6 ------- Run | Yrd Mat Sub Scr Fac Slots Evolved 8 | . . . . 8 Power 1 | . . . . 1 Propulsion 2 | . . . . 2 Utility 4 | . . . . 4 Weapon 1 | . . . . 1 Parts Attached 27 | 7 2 2 9 7 Power 5 | 1 . 1 2 1 Engine 4 | 1 . 1 2 . Core 1 | . . . . 1 Reactor . | . . . . . Propulsion 7 | 2 . . 4 1 Treads 6 | 2 . . 3 1 Leg 1 | . . . 1 . Wheel . | . . . . . Hover . | . . . . . Flight . | . . . . . Utility 9 | 2 2 . 1 4 Device 3 | 1 . . . 2 Storage 2 | 1 1 . . . Processor 2 | . . . 1 1 Hackware . | . . . . . Protection 2 | . 1 . . 1 Artifact . | . . . . . Weapon 6 | 2 . 1 2 1 Energy Gun 3 | 2 . 1 . . Energy Cannon . | . . . . . Ballistic Gun 2 | . . . 1 1 Ballistic Cannon 1 | . . . 1 . Launcher . | . . . . . Special Weapon . | . . . . . Impact Weapon . | . . . . . Slashing Weapon . | . . . . . Piercing Weapon . | . . . . . Special Melee Weapon . | . . . . . Unidentified Prototypes . | . . . . . Parts Lost 1 | . . 1 . . Power . | . . . . . Propulsion 1 | . . 1 . . Utility . | . . . . . Weapon . | . . . . . Highest Loss Streak 1 | . . 1 . . To Critical Strikes . | . . . . . Average Backups 7 | . 3 5 7 11 Power 2 | . 1 2 2 2 Propulsion . | . . . 1 . Utility 1 | . 1 1 1 3 Weapon 1 | . . 1 2 3 Tool/Special . | . . . . . Unused Backups 14 | . . . 4 10 Power 1 | . . . . 1 Propulsion 3 | . . . 2 1 Utility 4 | . . . 1 3 Weapon 4 | . . . 1 3 Tool/Special 2 | . . . . 2 Average Slot Usage (%) 93 | . 100 94 94 78 Engine 13 | . 14 14 13 10 Treads 20 | . 28 23 18 19 Leg 3 | . . . 5 . Device 5 | . 2 12 5 4 Storage 12 | . 14 14 14 6 Processor 6 | . . . 8 10 Protection 2 | . 11 1 . 5 Energy Gun 20 | . 28 28 22 . Ballistic Gun 3 | . . . 2 12 Ballistic Cannon 2 | . . . 3 6 Peak Build Rating 63 | 7 7 10 36 63 Average Rating 20 | 5 6 8 18 56 On Entrance 11 | . 7 7 9 35 Naked Turns . | . . . . . Heaviest Build 75 | 15 32 32 43 75 Greatest Support 82 | 40 40 40 52 82 Greatest Overweight (x) 2 | 2 . 1 1 . Average Overweight (x) . | . . . . . Largest Inventory Capacity 15 | 8 15 15 15 15 Average Capacity 14 | 7 14 15 15 15 Most Carried 15 | 1 5 7 15 13 Average Carried 7 | . 3 5 8 11 Final Capacity 15 | 8 15 15 15 15 Final Carried 13 | 1 5 7 13 12 Class Distribution -------------------- 88% | Mutant 7% | Skirmisher 3% | Tank Dominant Class ---------------- Mutant | -10/Materials Mutant | -10/Subcaves Mutant | -8/Scraptown Skirmisher | -6/Factory Resources | -11 -10 -10 -8 -6 ----------- Run | Yrd Mat Sub Scr Fac Matter Collected 470 | 270 20 30 80 70 Remotely . | . . . . . Salvage Created 607 | 29 305 140 . 133 Parts 38 | 5 17 9 . 7 Haulers Intercepted . | . . . . . Recyclers Shooed . | . . . . . Parts Field Recycled . | . . . . . Retrieved Matter . | . . . . . Parts Self-Destructed 15 | . . 15 . . Prevented . | . . . . . Kills | -11 -10 -10 -8 -6 ------- Run | Yrd Mat Sub Scr Fac Combat Hostiles Destroyed 14 | . 7 5 . 2 Guns 12 | . 7 5 . . AOE 1 | . . . . 1 Classes Destroyed 8 | 1 4 1 . 2 Worker 1 | . 1 . . . Tunneler 1 | 1 . . . . Operator 1 | . . . . 1 Watcher 2 | . 2 . . . Swarmer 6 | . 3 3 . . Grunt 4 | . 4 . . . Hunter 2 | . . . . 2 Subdweller 2 | . . 2 . . Best Kill Streak 3 | 1 3 3 . 2 Combat Bots Only 3 | . 2 3 . 2 Max Kills in Single Turn 2 | 1 2 1 . 1 Gunslinging 1 | . 1 . . . Exploded 1 | . . . . 1 Melee . | . . . . . Uniques/NPCs Destroyed . | . . . . . Combat | -11 -10 -10 -8 -6 -------- Run | Yrd Mat Sub Scr Fac Hostile Shots Fired 74 | . 28 39 . 7 Missed 22 | . 6 13 . 3 Hits 52 | . 22 26 . 4 Projectile 52 | . 22 26 . 4 Critical Strikes 1 | . 1 . . . Damage Taken 679 | . 266 336 . 77 Core 132 | . 59 73 . . Absorbed by Shields . | . . . . . Core Remaining (%) 73 | 100 . . 47 . Volleys Fired 74 | 1 30 35 . 8 Largest 3 | 2 2 2 . 3 Hottest 110 | 100 100 110 . 102 Shots Fired 155 | 2 60 70 . 23 Gun 147 | 2 60 70 . 15 Cannon 8 | . . . . 8 Launcher . | . . . . . Special . | . . . . . Kinetic 23 | . . . . 23 Thermal 132 | 2 60 70 . . Explosive . | . . . . . Electromagnetic . | . . . . . Robot Hit Streak 20 | 2 6 20 . 4 Robot Miss Streak 8 | . 5 8 . 8 Penetration Max . | . . . . . Secondary Targets 2 | . 1 1 . . Max Gunslinging Chain 1 | . 1 1 . . Shots Hit Robots 82 | 2 33 36 . 11 Core Hits 41 | 1 15 7 . 18 Critical Kills . | . . . . . Critical Parts Destroyed . | . . . . . Critical Strikes 2 | . 1 1 . . Burn 2 | . 1 1 . . Melee Attacks . | . . . . . Impact . | . . . . . Slashing . | . . . . . Piercing . | . . . . . Sneak Attacks . | . . . . . Combat Hostiles . | . . . . . Follow-up Attacks . | . . . . . Damage Inflicted 1388 | 26 422 406 . 534 Guns 948 | 26 422 406 . 94 Cannons 85 | . . . . 85 Explosions 355 | . . . . 355 Melee . | . . . . . Ramming . | . . . . . Kinetic 179 | . . . . 179 Thermal 896 | 26 422 406 . 42 Explosive . | . . . . . Electromagnetic 313 | . . . . 313 Impact . | . . . . . Slashing . | . . . . . Piercing . | . . . . . Highest Corruption . | . . . . . Average Corruption . | . . . . . Corruption Purged . | . . . . . Corruption Blocked . | . . . . . Overload Shots . | . . . . . Overflow Damage . | . . . . . Projectiles . | . . . . . Explosions . | . . . . . Melee . | . . . . . Knockbacks 2 | . . . . 2 Impact . | . . . . . Kinetic 2 | . . . . 2 Secondary . | . . . . . Self-Inflicted Damage . | . . . . . Shots . | . . . . . Rammed . | . . . . . Targets Rammed . | . . . . . Kicked . | . . . . . Crushed . | . . . . . Highest Temperature 502 | 39 502 . . 132 Average Temperature 119 | 20 147 . . 53 Received Heat Transfer 159 | . 141 18 . . Effects 6 | . 6 . . . Shutdowns 2 | . 2 . . . Energy Bleed 2 | . 2 . . . Interference 2 | . 2 . . . Siege Activations . | . . . . . Martial Activations . | . . . . . Shielding Activations . | . . . . . Robots Disrupted . | . . . . . Combat Hostiles . | . . . . . Robots Corrupted 1 | . . . . 1 Combat Hostiles 1 | . . . . 1 Parts Fried 2 | . . . . 2 Impact Corruptions . | . . . . . Robots Melted . | . . . . . Combat Hostiles . | . . . . . Parts Melted 1 | . . 1 . . Heat Transferred 2580 | 74 1332 1124 . 50 Parts Sabotaged . | . . . . . Parts Stolen . | . . . . . Parts Stripped . | . . . . . Power Chain Reactions 1 | . . . . 1 Alert | -11 -10 -10 -8 -6 ------- Run | Yrd Mat Sub Scr Fac Maximum Alert Level . | . . . . . Low Security (%) 100 | 100 100 . . 100 Level 1 . | . . . . . Level 2 . | . . . . . Level 3 . | . . . . . Level 4 . | . . . . . Level 5 . | . . . . . High Security . | . . . . . Max Security . | . . . . . Peak Influence 140 | 5 129 . . 140 Initial . | . . . . . Average 37 | . 62 . . 16 Influence Increases 492 | 5 256 70 . 161 Destroy 0b10 Robot/C 240 | . 140 60 . 40 Destroy 0b10 Robot/NC 25 | 5 15 . . 5 Destroy Leader 54 | . 34 10 . 10 Successful Hack 22 | . 22 . . . Disable Machine 105 | . . . . 105 Destroy Structure 1 | . . . . 1 Lose Combat Pursuer 45 | . 45 . . . Influence Decreases 375 | 5 210 116 . 44 Entered New Map 23 | . . 23 . . Time Decay 352 | 5 210 93 . 44 Squads Dispatched 3 | . 2 . . 1 Investigation 1 | . 1 . . . Extermination 1 | . . . . 1 Reinforcement 1 | . 1 . . . Assault . | . . . . . Garrison . | . . . . . Intercept . | . . . . . Searches Triggered . | . . . . . Construction Impeded . | . . . . . Haulers Reinforced . | . . . . . Active Scanning Responses . | . . . . . Cargo Convoy Interrupts . | . . . . . Stealth | -11 -10 -10 -8 -6 --------- Run | Yrd Mat Sub Scr Fac Distress Signals 2 | . 2 . . . Communications Jammed . | . . . . . Distress Signals . | . . . . . Times Spotted 26 | . 15 5 . 6 Peak Tracking Total 4 | . 4 3 . 4 Tactical Retreats 2 | . 2 . . . Traps | -11 -10 -10 -8 -6 ------- Run | Yrd Mat Sub Scr Fac Traps Triggered 1 | . 1 . . . Indirectly . | . . . . . Trap Hack Attempts . | . . . . . Triggered . | . . . . . Disarmed . | . . . . . Reprogrammed . | . . . . . Reused . | . . . . . Traps Extracted . | . . . . . Installed . | . . . . . Triggered . | . . . . . Machines | -11 -10 -10 -8 -6 ---------- Run | Yrd Mat Sub Scr Fac Machines Disabled 7 | . . . . 7 Max in Single Turn 6 | . . . . 6 Machines Repaired . | . . . . . Machines Dismantled . | . . . . . Machines Sabotaged . | . . . . . Overloaded Fab Kills . | . . . . . Hacking | -11 -10 -10 -8 -6 --------- Run | Yrd Mat Sub Scr Fac Machines Accessed 11 | . 2 1 4 4 Terminals 3 | . 2 . . 1 Fabricators . | . . . . . Repair Stations 2 | . . . . 2 Recycling Units . | . . . . . Scanalyzers . | . . . . . Garrison Access 1 | . . . . 1 Total Hacks 29 | . 7 5 13 4 Successful 21 | . 3 5 13 . Failed 8 | . 4 . . 4 Catastrophic 2 | . . . . 2 Database Lockouts . | . . . . . Manual 8 | . 7 . . 1 Terminals 8 | . 7 . . 1 Fabricators . | . . . . . Repair Stations 2 | . . . . 2 Recycling Units . | . . . . . Scanalyzers . | . . . . . Garrison Access 1 | . . . . 1 Terminal Hacks 19 | . 1 5 13 . Record 18 | . . 5 13 . Terminal Index 1 | . 1 . . . Fabricator Hacks . | . . . . . Repair Station Hacks . | . . . . . Recycling Unit Hacks . | . . . . . Scanalyzer . | . . . . . Garrison Access Hacks . | . . . . . Unauthorized Hacks 2 | . 2 . . . Terminals 2 | . 2 . . . Botnet 1 | . 1 . . . Operators 1 | . 1 . . . Fabricators . | . . . . . Repair Stations . | . . . . . Recycling Units . | . . . . . Scanalyzers . | . . . . . Garrison Access . | . . . . . Data Cores Recovered 1 | . . . . 1 Used . | . . . . . Hacking Detections 6 | . 2 . . 4 Full Trace Events . | . . . . . Feedback Events . | . . . . . Feedback Blocked . | . . . . . Robot Schematics Acquired . | . . . . . Robots Built . | . . . . . Authchips . | . . . . . Time . | . . . . . Total Robot Build Rating . | . . . . . Part Schematics Acquired . | . . . . . Parts Built . | . . . . . Authchips . | . . . . . Time . | . . . . . Total Part Build Rating . | . . . . . Parts Repaired . | . . . . . Time . | . . . . . Parts Recycled . | . . . . . Recycled Matter . | . . . . . Retrieved Matter . | . . . . . Retrieved Components . | . . . . . Parts Scanalyzed . | . . . . . Part Schematics Acquired . | . . . . . Parts Damaged . | . . . . . Bothacking | -11 -10 -10 -8 -6 ------------ Run | Yrd Mat Sub Scr Fac Used RIF Installer . | . . . . . Robots Hacked . | . . . . . Non-combat . | . . . . . Combat . | . . . . . Robot Hacks Applied . | . . . . . Relay Couplers Released . | . . . . . Fabnet Peak Effective % . | . . . . . Robots Rewired . | . . . . . Allies Hacked . | . . . . . Hacks Repelled . | . . . . . Allies | -11 -10 -10 -8 -6 -------- Run | Yrd Mat Sub Scr Fac Total Allies . | . . . . . Largest Group . | . . . . . Highest-Rated Group . | . . . . . Highest-Rated Ally . | . . . . . Total Orders . | . . . . . Ally Attacks . | . . . . . Total Damage . | . . . . . Kills . | . . . . . Allies Corrupted . | . . . . . Allies Melted . | . . . . . Intel | -11 -10 -10 -8 -6 ------- Run | Yrd Mat Sub Scr Fac Active Infowar (turns) 1753 | 30 98 442 872 311 Sensors 311 | . . . . 311 Seismic 1442 | 30 98 442 872 . Robot Analysis Total . | . . . . . Derelict Logs Recovered 2 | . . . 2 . Drone Launches . | . . . . . Drone Recoveries . | . . . . . Exploration | -11 -10 -10 -8 -6 ------------- Run | Yrd Mat Sub Scr Fac Turns Passed 4057 | 77 585 472 2398 525 Spaces Moved 1938 | 42 271 191 1141 293 Core 7 | 7 . . . . Treads 1931 | 35 271 191 1141 293 Legs . | . . . . . Wheels . | . . . . . Hover . | . . . . . Flight . | . . . . . Fastest Speed 50 | 50 160 160 152 152 Average Speed 187 | 151 160 180 205 154 Slowest Speed 240 | 160 160 240 240 155 Overloaded Moves . | . . . . . Propulsion Burnouts . | . . . . . Robots Hopped . | . . . . . Potential Cave-ins . | . . . . . Cave-ins Triggered . | . . . . . Exploration Rate (%) 33 | 4 50 20 83 8 Regions Visited 4 Branch Regions 2 Pre-discovered Areas 1 | . . 1 . . Known Exits Taken . | . . . . . Unknown Exits Taken 4 | 1 1 1 1 . Scrap Searched 6 | . . . 6 . Spaces Dug . | . . . . . Terrain Destroyed 2 | . . . . 2 Melee . | . . . . . Projectile 2 | . . . . 2 AOE . | . . . . . Terrain Rammed . | . . . . . Walls Destroyed . | . . . . . Machines Disabled . | . . . . . Actions | -11 -10 -10 -8 -6 --------- Run | Yrd Mat Sub Scr Fac Total 2202 | 50 362 250 1195 345 Wait 128 | . 57 17 23 31 Move 1934 | 41 270 190 1140 293 Hop . | . . . . . Pick Up 18 | 1 2 2 10 3 Fast Attach 22 | 7 1 2 7 5 Attach 5 | . . 1 1 3 Detach 3 | . 1 1 1 . Swap 2 | . 1 . 1 . Drop 16 | . . 2 12 2 Fire 74 | 1 30 35 . 8 Melee . | . . . . . Ram . | . . . . . Kick . | . . . . . Crush . | . . . . . Escape Stasis . | . . . . . Rewire . | . . . . . Trap . | . . . . . Miscellaneous . | . . . . . Route ------- -11/Scrapyard -10/Materials (discovered 3 exits: [*Mat] / [*Min] / *Sub) -10/Subcaves (discovered 2 exits: [*Mat] / *Scr) -8/Scraptown -6/Factory History --------- Turn | Location | Event 13 | -11/Scrapyard | Discovered new exit (range 15) 78 | -11/Scrapyard | Entered Materials 312 | -10/Materials | Build established: Mutant 422 | -10/Materials | Discovered new exit (range 5) 561 | -10/Materials | Discovered new exit (range 16) 657 | -10/Materials | Discovered new exit (range 5) 663 | -10/Materials | Entered Subcaves 664 | -10/Subcaves | Approached by a straggling Scientist 897 | -10/Subcaves | Visited Clippyterm 902 | -10/Subcaves | Learned location of Extension (-4) 902 | -10/Subcaves | Learned Research security intel 931 | -10/Subcaves | Discovered new exit (range 8) 968 | -10/Subcaves | Core integrity fell below 50% 1066 | -10/Subcaves | Scientist uncovered a shortcut to Scraptown 1135 | -10/Subcaves | Entered Scraptown 1320 | -8/Scraptown | Scanned Subdweller tech in exchange for log data 1328 | -8/Scraptown | Learned Research stockpile data 1330 | -8/Scraptown | Learned Factory garrison access intel 1426 | -8/Scraptown | Visited Cyclists 1464 | -8/Scraptown | Visited UFD Registry 1464 | -8/Scraptown | Registered with UFD as "Cogbox" 1512 | -8/Scraptown | Entered Cyclist Reading Room 1628 | -8/Scraptown | Visited The Evicted 1649 | -8/Scraptown | Visited SPCMW 1690 | -8/Scraptown | Visited Cave Peace 1793 | -8/Scraptown | Visited Observation Area 1882 | -8/Scraptown | Visited Junk Repository 1988 | -8/Scraptown | Visited A0-MCA Data Center 2003 | -8/Scraptown | Given a C+ rating by A0-MCA 2008 | -8/Scraptown | Found A0-MCA's Component Scanner 2279 | -8/Scraptown | Visited Science Testing Area 2315 | -8/Scraptown | Visited Scrap Suit Storage 2351 | -8/Scraptown | Visited Abandonware Association 2380 | -8/Scraptown | Learned abandonware demo "OVRCLOCK.EXE" 2385 | -8/Scraptown | Learned abandonware demo "ERRANTS.EXE" 2385 | -8/Scraptown | Learned abandonware demo "POISON.EXE" 2426 | -8/Scraptown | Visited Junk Cannon Lab 2464 | -8/Scraptown | Visited Scrapoid Pod Storage 2507 | -8/Scraptown | Visited LU-1G1's Boring Crew 2591 | -8/Scraptown | Visited Curators Association 2769 | -8/Scraptown | Visited Bundlers 2889 | -8/Scraptown | Visited Symbiants 2950 | -8/Scraptown | Heard Great Nut preacher, LISTEN AND RECITE! 3449 | -8/Scraptown | Met Optimus 3449 | -8/Scraptown | Accepted into 0bPrime 3530 | -8/Scraptown | Discovered new exit (range 3) 3533 | -8/Scraptown | Entered Factory 3533 | -6/Factory | Evolved 8 slots: Power x1, Propulsion x2, Utility x4, Weapon x1 3534 | -6/Factory | Loaded intel: 4 garrison access locations 4045 | -6/Factory | Build established: Skirmisher 4058 | -6/Factory | Self-destructed Last Messages --------------- 03989_ Penetrated by Slug. 03989_ Slug penetrates H-66 Slayer. 03991_ R-10 Processor collects Ion Engine. 03995_ Door malfunctions. 03995_ Slug penetrates Wall. 04006_ Acquired 70 matter. 04007_ R-10 Processor collects Corrupted Flexi-carbon Leg. 04010_ R-10 Processor collects Corrupted Gauss Rifle. 04017_ Slug penetrates W-25 Informer. 04017_ Slug penetrates Wall. 04018_ R-10 Processor collects Corrupted Flexi-carbon Leg. 04020_ Slug penetrates W-25 Informer. 04020_ W-25 Informer knocked back. 04050_ ALERT: Potential suspicious activity detected, Programmers report to Factory Zone 9Y. 04058_ Connecting with Terminal... Map ----- +----------------------------------------------------+ | ??????????# #????????????????????????? | | ??????????# #????????????????????????? | | ??????????# #????????????????????????? | | ??????????# #????????????????????????? | | ??????????# #????????????????????????? | | ??????????# #????????????????????????? | | ??????????# #????"???????????????????? | | ??????????# # " " ??????????????????? | | ??????????# / " " ??????????????????? | | ??????????# / # " " ??????????????????? | | ??????????########/###### " "???????????????????? | | ???????????????# #? " "???????????????????? | | ???????????????# #??"?????????????????????? | | ???????????????# #????????????????????????? | | ???????????????# #????????????????????????? | | ???????????????# ######+##????????????????? | | ???????????????# # ?????????????????? | | ???????????????# # ?????????????????? | | ???????????????# ; R ?????????????????? | | ???????????????# # #+??????????????????? | | ???????????????#+######## #???????????????????? | | ???????????????# #??????# #???????????????????? | | ???????????????# #??????# #???????????????????? | | ??????########## ######## #???????????????????? | | ?? k #???????????????????? | | ?????????##### @ #???????????????????? | | ?????????????# """ """ T #???????????????????? | | ?????????????# """ """ #???????????????????? | | ?????????????# """ """ #???????????????????? | | ?????????????# #????g??????????????? | | ?????????????# """ """ """ #????gg?????????????? | | ????????????? """ """ """ #???????????????????? | | ???????????? """ """ """ #???????????????????? | | ???????????? ?? #???????????????????? | | ???????????### ?? #???????????????????? | | ?????????????# ??? ?? #???????????????????? | | ?????????????##???#######???##???????????????????? | | ?????????????????????????????????????????????????? | | ?????????????????????????????????????????????????? | | ?????????????????????????????????????????????????? | | ?????????????????????????????????????????????????? | | ?????????????????????????????????????????????????? | | ?????????????????????????????????????????????????? | | ?????????????????????????????????????????????????? | | ?????????????????????????????????????????????????? | | ?????????????????????????????????????????????????? | | ?????????????????????????????????????????????????? | | ?????????????????????????????????????????????????? | | ?????????????????????????????????????????????????? | | ?????????????????????????????????????????????????? | +----------------------------------------------------+ Best States ------------- Heat Dissipation 37 Energy Generation 29 Energy Capacity 440 Matter Stores 300 Matter Capacity 300 Sight Range 16 Robot Scan Range 15 Terrain Scan Density 10 Armor Coverage 600 Evasion (%) 40 Recoil Reduction 3 Matter Filtering 30 Item Schematics ----------------- None Robot Schematics ------------------ None Fabricated ------------ Nothing Repaired ---------- Nothing Alien Tech Used ----------------- None Achievements -------------- None Challenges ------------ None Game ------ Seed ImpulseDiametricJets Manual? 0 Play Time 00:18:22 Cumulative 417.7 hours Start 2025.09.03 @ 22:33:03 End 2025.09.03 @ 22:54:23 Sessions 1 Manual Loads 0 Difficulty Rogue Special Mode None Game No. 419 Rogue 414 Adventurer 5 Explorer 0 Win Type - Total 9 Types 6/0/0/3/0/0/0/0/0/0 Lore% 82 Gallery% 79 Achievement% 71 Wizard Run 0 Options --------- Layout 1 ASCII 0 Keyboard 0 Movement Arrows Keybinds 0 Fullscreen 1 Font 24/Terminus Map View 50x35 Zoom Use 0% Tactical HUD 1 Map Filters NONE Filters NONE Steam 1 RUN: fcdf0926-0e13-48d5-adf4-dcd10d6034a4